bitfinex/quotes_ETHUSD_20250722
["timestamp","ask_amount","ask_price","bid_price","bid_amount"]
[1753147988368,4.438,3748.6,3748.5,0.1328]
[1753147988573,0.2625,3748.8,3748.5,0.1328]
[1753147988798,4.438,3748.7,3748.5,0.1328]
[1753147989988,4.437,3748.8,3748.5,0.1328]
[1753147990406,7.10455452,3748.8,3748.5,0.1328]
[1753147990574,4.437,3748.8,3748.5,0.1328]
[1753147990908,2.66759143,3748.7,3748.5,0.1328]
[1753147991113,2.66731453,3749.1,3748.5,0.1328]
[1753147991316,2.69412638,3749.0,3748.5,0.1328]
[1753147991472,2.66744911,3748.9,3748.5,0.1328]
[1753147991672,5.66735987,3749.1,3748.5,0.1328]
[1753147991909,7.435,3749.0,3748.8,0.1328]
[1753147992294,2.66730682,3749.1,3748.8,0.1328]
[1753147992591,7.10237796,3749.0,3748.9,0.1328]
[1753147992914,6.406,3749.2,3748.9,0.1328]
[1753147993209,4.434,3749.1,3748.9,0.1328]
[1753147993416,2.66737796,3749.0,3748.9,0.1328]
[1753147993771,7.10131917,3749.1,3748.9,0.1328]
[1753147993977,2.66764578,3748.7,3747.8,4.28977252]
[1753147994177,2.66780493,3748.4,3748.3,0.1328]
[1753147995016,4.433,3748.6,3748.3,0.1328]
[1753147995621,3.0,3749.0,3748.0,2.66806711]
[1753147995803,4.431,3748.9,3748.5,0.1328]
[1753147996011,2.66752038,3748.8,3748.5,0.1328]
[1753147996307,2.66766259,3748.6,3748.5,0.1328]
[1753147996490,2.66781558,3748.4,3747.8,1.6216]
[1753147996682,2.66806168,3748.1,3747.8,1.1624]
[1753147996876,2.93482463,3748.1,3748.0,0.1328]
[1753147997282,7.36482463,3748.1,3748.0,0.1328]
[1753147998096,2.66815415,3748.0,3747.6,0.1328]
[1753147998297,2.69487719,3747.9,3747.6,0.1328]
[1753147998500,0.61831797,3747.8,3747.3,0.1328]
[1753147998822,2.66835735,3747.7,3747.6,0.1328]
[1753147999001,0.1328,3748.3,3747.0,0.1328]
[1753147999002,0.1328,3747.6,3747.0,0.1328]
[1753147999196,4.429,3747.5,3747.3,0.1328]
[1753147999679,7.09746693,3747.5,3747.3,0.1328]
[1753147999884,4.429,3747.5,3747.3,0.1328]
[1753148000698,0.1328,3747.9,3747.3,0.1328]
[1753148000896,0.2625,3749.0,3747.4,1.57018516]
[1753148001100,3.0,3748.8,3748.0,2.66803693]
[1753148001299,3.0,3748.8,3747.5,0.4292]
[1753148001615,0.494193,3748.7,3747.4,1.1143]
[1753148001987,2.66766259,3748.6,3747.6,2.66832743]
[1753148002200,2.66800327,3748.2,3747.5,0.4292]
[1753148002496,2.6675622,3748.8,3747.5,0.4292]
[1753148002497,3.0,3748.8,3748.2,2.66793627]
[1753148002712,0.026693,3748.9,3747.6,0.4292]
[1753148002897,2.66785926,3748.4,3747.6,0.4292]
[1753148003113,4.426,3748.3,3747.8,2.66817719]
[1753148003521,4.426,3748.3,3747.6,0.4292]
[1753148003722,4.426,3748.3,3747.4,1.1143]
[1753148003723,0.026693,3748.2,3747.4,1.1143]
[1753148003894,2.66816962,3747.9,3747.4,1.1143]
[1753148004089,7.11997962,3747.8,3747.1,3.09787696]
[1753148004290,4.425,3747.8,3747.0,1.1445]
[1753148004535,0.469193,3747.7,3746.6,1.1445]
[1753148004690,2.66844563,3747.5,3746.6,3.8402264]
[1753148005024,2.66870267,3747.2,3746.6,1.17119086]
[1753148005210,2.66880823,3747.0,3746.3,2.66925228]
[1753148005623,2.66895073,3746.8,3746.2,3.88244498]
[1753148005797,0.026693,3747.0,3746.2,1.2131]
[1753148006112,2.66887293,3746.9,3746.2,1.2131]
[1753148006290,0.026693,3747.0,3746.2,3.88245933]
[1753148006491,0.46931714,3747.0,3746.2,1.2131]
[1753148006691,2.66920807,3746.5,3745.8,1.2161]
[1753148006940,0.44262414,3747.0,3745.7,2.66972249]
[1753148006941,7.09310806,3746.6,3745.7,2.66972249]
[1753148007152,3.0,3746.4,3745.2,0.4292]
[1753148007294,9.31078927,3746.5,3745.3,0.02670013]
[1753148007295,4.892193,3746.3,3745.3,0.02670013]
[1753148007495,4.892193,3746.3,3745.2,0.4292]
[1753148007693,2.66944924,3746.1,3745.2,0.4292]
[1753148008004,2.66965427,3745.9,3745.2,0.4292]
[1753148008207,2.66953183,3746.0,3745.3,2.67000516]
[1753148008419,7.09259337,3745.9,3745.2,3.09927487]
[1753148008713,4.423,3745.9,3745.2,0.4292]
[1753148008891,4.423,3745.9,3745.3,2.67000715]
[1753148009293,0.026693,3746.0,3745.2,3.09927541]
[1753148009493,4.423,3745.9,3745.3,2.67000614]
[1753148009729,2.66964153,3745.9,3745.2,3.09927459]
[1753148009938,4.423,3745.8,3745.3,2.66999552]
[1753148010147,4.423,3745.8,3745.2,3.09927917]
[1753148010740,4.422,3745.7,3745.2,0.4292]
[1753148010943,4.422,3745.7,3745.6,0.1328]
[1753148011454,4.422,3745.8,3745.6,0.1328]
[1753148011638,2.66946599,3746.1,3745.6,0.1328]
[1753148011954,4.422,3746.0,3745.6,0.1328]
[1753148012275,4.422,3746.0,3745.9,2.66958541]
[1753148012436,0.026693,3746.7,3746.0,0.1328]
[1753148012767,0.2611,3747.4,3745.7,1.1354]
[1753148012768,4.421,3747.0,3745.7,1.1354]
[1753148012911,2.66929083,3746.4,3745.9,0.1328]
[1753148013122,0.159493,3746.5,3746.0,2.66949584]
[1753148013430,4.5538,3746.5,3746.1,2.66941932]
[1753148013771,4.421,3746.6,3746.4,0.1328]
[1753148014076,4.421,3746.8,3746.5,2.66910763]
[1753148014223,4.421,3746.8,3746.4,0.1328]
[1753148014552,4.42,3747.0,3746.5,2.66915779]
[1753148014717,7.08881328,3747.0,3746.4,0.1328]
[1753148014912,4.42,3747.0,3746.4,0.1328]
[1753148015114,0.1328,3747.2,3746.5,0.02669157]
[1753148015354,4.42,3747.3,3746.9,0.1328]
[1753148015519,0.026693,3747.6,3746.9,2.66887293]
[1753148015857,4.42,3747.5,3747.1,0.1328]
[1753148016020,2.66832311,3747.7,3747.1,0.1328]
[1753148016351,0.026693,3747.7,3747.1,0.1328]
[1753148016515,7.08738252,3747.6,3747.1,0.1328]
[1753148017157,2.66852397,3747.4,3747.1,0.1328]
[1753148017340,0.026693,3747.5,3747.1,0.1328]
[1753148017935,0.026693,3747.5,3747.1,2.80152026]
[1753148018253,4.419,3747.6,3747.1,0.1328]
[1753148018459,4.418,3747.5,3747.1,0.1328]
[1753148018654,0.1328,3747.8,3747.1,0.96123752]
[1753148018841,4.418,3747.8,3747.4,0.1328]
[1753148019354,0.1328,3748.1,3747.7,2.66829266]
[1753148019557,0.1328,3748.1,3747.4,0.1328]
[1753148019558,6.403,3748.4,3747.4,1.2285]
[1753148019775,4.417,3748.3,3748.0,0.1328]
[1753148019949,4.417,3748.3,3748.0,2.80088332]
[1753148020150,0.1328,3748.7,3748.0,2.80085712]
[1753148020456,4.417,3748.6,3748.0,0.562]
[1753148020649,4.417,3748.6,3748.1,2.66797201]
[1753148020951,0.026693,3748.5,3748.0,0.562]
[1753148021275,0.026693,3748.5,3748.1,2.6680086]
[1753148021470,4.417,3748.6,3748.0,0.562]
[1753148021783,4.417,3748.6,3748.1,2.66801846]
[1753148021954,4.417,3748.6,3748.0,3.23008188]
[1753148022465,4.443693,3748.6,3748.0,0.1328]
[1753148022639,2.66773376,3748.5,3748.0,0.1328]
[1753148022840,2.66795331,3748.2,3748.0,0.1328]
[1753148023051,0.026693,3748.4,3748.0,0.1328]
[1753148023052,7.10971146,3748.1,3748.0,0.1328]
[1753148023274,2.66814307,3748.0,3747.5,0.1328]
[1753148023477,0.026693,3747.9,3747.5,0.1328]
[1753148023773,2.66837442,3747.6,3747.5,0.1328]
[1753148024149,2.66837442,3747.6,3746.9,1.1569]
[1753148024349,2.69513863,3747.5,3747.2,0.1328]
[1753148024577,2.66852027,3747.4,3747.2,0.1328]
[1753148024812,2.69507732,3747.6,3747.2,0.1328]
[1753148024959,2.66847645,3747.5,3747.2,0.1328]
[1753148025261,0.026693,3747.4,3745.9,0.4292]
[1753148025462,2.66900734,3746.8,3746.5,0.1328]
[1753148025699,0.026693,3746.7,3746.0,1.201]
[1753148025866,0.026693,3746.7,3746.3,0.1328]
[1753148026070,2.6957411,3746.7,3746.3,0.1328]
[1753148026262,2.6957246,3746.7,3746.6,0.001]
[1753148026689,7.1077246,3746.7,3746.6,0.001]
[1753148027016,7.0810316,3746.7,3746.6,0.001]
[1753148027392,7.5188316,3746.7,3746.6,0.001]
[1753148028379,0.2611,3747.1,3746.6,0.001]
[1753148028582,2.6690154,3746.7,3746.6,0.001]
[1753148028780,2.66887293,3746.9,3746.6,0.001]
[1753148028781,0.026693,3746.8,3746.6,0.001]
[1753148028995,0.82061959,3746.8,3746.6,0.001]
[1753148029210,3.2396154,3746.7,3746.6,0.001]
[1753148030630,6.2396154,3746.7,3746.6,0.001]
[1753148031329,10.6496154,3746.7,3746.6,0.001]
[1753148031488,10.9107154,3746.7,3746.6,0.001]
[1753148031908,10.4719154,3746.7,3746.6,0.001]
[1753148032313,10.9097154,3746.7,3746.6,0.001]
[1753148033414,6.0629154,3746.7,3746.6,0.001]
[1753148033615,6.0896084,3746.7,3746.6,0.001]
[1753148033852,7.2365084,3746.7,3746.6,0.001]
[1753148034050,7.2098154,3746.7,3746.6,0.001]
[1753148034410,0.1328,3746.7,3746.6,0.001]
[1753148034722,7.2098154,3746.7,3746.6,0.001]
[1753148035268,2.8018154,3746.7,3746.6,0.001]
[1753148035446,4.567493,3746.7,3746.6,0.001]
[1753148035630,7.2365084,3746.7,3746.6,0.001]
[1753148035834,7.2098154,3746.7,3746.6,0.001]
[1753148036130,4.5408,3746.7,3746.6,0.001]
[1753148036733,2.8018154,3746.7,3746.6,0.001]
[1753148036933,7.2355084,3746.7,3746.6,0.001]
[1753148037130,7.2088154,3746.7,3746.6,0.001]
[1753148037833,4.5398,3746.7,3746.6,0.001]
[1753148038033,4.566493,3746.7,3746.6,0.001]
[1753148038234,7.2355084,3746.7,3746.6,0.001]
[1753148038535,4.5398,3746.7,3746.6,0.001]
[1753148038731,7.2355084,3746.7,3746.6,0.001]
[1753148039040,7.2088154,3746.7,3746.6,0.001]
[1753148039876,0.1328,3746.7,3746.6,0.001]
[1753148040076,0.026693,3746.8,3746.6,0.001]
[1753148040255,4.405,3746.7,3746.6,0.001]
[1753148040658,0.026693,3746.7,3746.6,0.001]
[1753148040955,4.405,3746.7,3746.6,0.001]
[1753148041150,0.026693,3746.8,3746.6,0.001]
[1753148041386,2.69562494,3746.9,3746.6,0.001]
[1753148041598,0.026693,3746.9,3746.6,0.001]
[1753148041766,4.404,3746.8,3746.6,0.001]
[1753148042379,0.026693,3746.7,3746.6,0.001]
[1753148042582,3.4162577,3746.7,3746.6,0.001]
[1753148042891,7.8192577,3746.7,3746.6,0.001]
[1753148043213,8.1235493,3746.7,3746.6,0.001]
[1753148043522,3.0,3746.7,3746.6,0.001]
[1753148043808,4.403,3746.7,3746.6,0.001]
[1753148046016,4.401,3746.7,3746.6,0.001]
[1753148047584,0.159493,3747.0,3746.6,2.67008185]
[1753148047784,2.66867646,3747.2,3746.6,1.139]
[1753148047785,2.66874583,3747.1,3746.6,1.139]
[1753148048042,2.66826451,3747.8,3746.6,1.139]
[1753148048043,0.1328,3747.6,3746.9,0.1328]
[1753148048322,4.402,3747.5,3746.9,2.8016135]
[1753148048483,4.402,3747.5,3747.2,0.1328]
[1753148048822,0.026693,3747.4,3746.6,1.139]
[1753148048983,0.026693,3747.4,3746.6,0.001]
[1753148049184,0.026693,3747.4,3746.6,0.1338]
[1753148049185,0.1328,3747.2,3746.6,0.1338]
[1753148049413,4.425693,3747.1,3746.6,0.1338]
[1753148049612,2.66880524,3747.0,3746.6,0.1338]
[1753148049819,0.026693,3746.9,3746.6,0.1338]
[1753148050208,4.398,3746.8,3746.6,0.1338]
[1753148050594,2.66885207,3747.0,3746.6,0.1338]
[1753148050794,4.398,3746.9,3746.6,0.1338]
[1753148051029,4.398,3746.8,3746.6,0.1338]
[1753148051735,4.398,3746.8,3746.7,0.4585]
[1753148052533,2.67051644,3747.5,3746.7,3.45365249]
[1753148052534,2.66851683,3747.4,3746.7,3.45365249]
[1753148052700,2.66867972,3747.2,3746.7,0.91743709]
[1753148052895,2.69537272,3747.2,3746.8,0.4585]
[1753148053095,4.397,3747.3,3746.8,0.4585]
[1753148053332,0.026693,3747.2,3746.8,0.4585]
[1753148053643,0.026693,3747.2,3746.7,0.1328]
[1753148053934,0.026693,3747.4,3746.8,0.4585]
[1753148054437,4.396,3747.3,3747.2,2.66865926]
[1753148054611,4.395,3747.3,3747.2,1.12645318]
[1753148054810,4.395,3747.3,3747.2,3.92791244]
[1753148055429,0.002,3747.5,3747.4,2.66851683]
[1753148055630,0.002,3747.5,3747.4,3.90450199]
[1753148055830,0.002,3747.5,3747.4,4.46911683]
[1753148056076,0.1328,3748.7,3748.4,2.66780493]
[1753148056354,0.01,3750.0,3748.4,6.87710493]
[1753148056355,0.2642,3749.9,3748.4,6.87710493]
[1753148056553,0.026693,3749.8,3748.9,3.87674911]
[1753148056716,0.036693,3750.0,3748.9,3.87674911]
[1753148056924,0.01,3750.0,3748.9,4.3619236]
[1753148057558,0.026693,3749.9,3748.9,4.33524911]
[1753148057719,0.458193,3749.9,3748.7,2.66752687]
[1753148058056,0.4315,3749.3,3748.0,0.4622]
[1753148058256,2.66943042,3749.0,3748.0,0.4622]
[1753148058460,0.026693,3748.9,3748.3,2.66785773]
[1753148058678,2.66939296,3749.0,3748.3,2.66785773]
[1753148058823,0.026693,3748.9,3748.0,3.13023722]
[1753148059017,2.66757858,3748.8,3748.1,0.31302372]
[1753148059222,0.026693,3748.7,3748.1,0.31302372]
[1753148059425,0.026693,3748.7,3747.7,1.1325]
[1753148059762,4.418693,3748.9,3748.1,0.4622]
[1753148059976,7.08619299,3748.9,3748.2,2.66791655]
[1753148060180,2.66753988,3748.8,3748.1,3.13020142]
[1753148060481,0.026693,3748.7,3747.7,1.5947]
[1753148060682,4.418693,3748.9,3747.8,0.18615232]
[1753148060982,4.418693,3748.9,3747.8,0.64835232]
[1753148061278,4.418693,3748.9,3747.9,0.4622]
[1753148061453,4.418693,3748.9,3748.0,2.69476188]
[1753148061655,0.002,3749.0,3748.1,0.4622]
[1753148061880,0.002,3749.0,3748.2,3.80857592]
[1753148062054,0.002,3749.0,3748.3,0.42707759]
[1753148062253,0.028693,3749.0,3748.3,0.4622]
[1753148062563,0.292893,3749.0,3747.8,1.74437]
[1753148062879,2.6678092,3748.4,3747.8,1.74437]
[1753148063042,0.026693,3748.3,3747.8,0.62167]
[1753148063243,0.458193,3748.9,3747.8,0.62167]
[1753148063445,2.66759671,3748.7,3747.9,2.66816083]
[1753148063766,0.2662,3749.0,3747.9,2.66816083]
[1753148063767,0.002,3749.0,3748.0,1.5802]
[1753148063967,0.002,3749.0,3748.2,2.66794728]
[1753148064182,0.002,3749.0,3748.4,1.194]
[1753148064487,0.002,3749.0,3748.7,2.66756462]
[1753148064684,0.002,3749.0,3748.9,2.66744911]
[1753148064886,0.002,3749.0,3748.9,3.20362041]
[1753148065250,0.002,3749.0,3748.9,3.66582041]
[1753148065668,0.002,3749.0,3748.9,0.9983713]
[1753148065864,0.002,3749.0,3748.6,2.66766247]
[1753148066085,0.002,3749.0,3748.9,2.66744911]
[1753148066381,0.002,3749.0,3748.9,2.80024911]
[1753148066584,0.002,3749.0,3748.9,0.595]
[1753148066750,0.002,3749.0,3748.9,3.26244911]
[1753148066949,0.002,3749.0,3748.9,1.19067777]
[1753148067285,0.002,3749.0,3748.9,0.595]
[1753148067475,0.002,3749.0,3748.9,0.1328]
[1753148068182,0.002,3749.0,3748.4,1.194]
[1753148068183,2.66937796,3749.0,3748.4,1.194]
[1753148068392,0.159493,3748.9,3748.0,1.1167]
[1753148068705,0.159493,3748.9,3748.3,0.1328]
[1753148068994,2.66774511,3748.5,3748.3,0.1328]
[1753148069287,2.69449793,3748.4,3747.7,1.2095]
[1753148069490,2.66815587,3748.0,3747.9,0.1328]
[1753148069782,2.66815587,3748.0,3747.5,0.4622]
[1753148070009,2.69472995,3748.1,3747.7,0.1328]
[1753148070183,2.66810489,3748.0,3747.7,0.1328]
[1753148070353,2.66808964,3748.0,3747.7,0.1328]
[1753148070556,2.66823202,3747.8,3747.7,0.1328]
[1753148070757,2.66817617,3747.9,3747.7,0.1328]
[1753148070959,0.026693,3748.1,3747.7,0.1328]
[1753148071158,2.69472162,3748.1,3747.7,0.595]
[1753148071373,2.69472162,3748.1,3747.7,0.1328]
[1753148071581,2.69472162,3748.1,3747.8,0.4622]
[1753148071884,2.69472162,3748.1,3747.7,0.1328]
[1753148071885,0.026693,3748.1,3747.7,0.1328]
[1753148072278,2.66823202,3747.8,3747.7,0.1328]
[1753148072657,0.026693,3748.0,3747.7,0.1328]
[1753148072869,2.66802243,3748.1,3747.7,0.1328]
[1753148073171,0.026693,3748.0,3747.7,0.1328]
[1753148073489,0.026693,3748.2,3747.7,0.1328]
[1753148073650,2.66811348,3748.0,3747.1,0.4632]
[1753148073859,2.66811348,3748.0,3747.4,0.1328]
[1753148073860,2.66842649,3747.6,3747.4,0.1328]
[1753148074089,2.66856669,3747.4,3747.1,0.001]
[1753148074408,0.026693,3747.3,3747.1,0.1338]
[1753148074560,0.026693,3747.5,3747.1,0.1338]
[1753148074756,2.69519596,3747.5,3747.1,0.1338]
[1753148074960,0.026693,3747.5,3747.1,0.1338]
[1753148075267,2.69500998,3747.7,3747.2,0.4622]
[1753148075472,2.66848298,3747.5,3747.3,0.1328]
[1753148075673,2.66851683,3747.4,3747.3,0.1328]
[1753148075993,0.026693,3747.7,3747.3,0.1328]
[1753148076182,2.66837442,3747.6,3747.3,0.1328]
[1753148076379,0.026693,3747.5,3747.3,0.1328]
[1753148076566,2.66844563,3747.5,3747.1,0.001]
[1753148076771,2.66865926,3747.2,3747.1,0.001]
[1753148077169,7.04865926,3747.2,3747.1,0.001]
[1753148077359,7.72755926,3747.2,3747.1,0.001]
[1753148077565,7.86035926,3747.2,3747.1,0.001]
[1753148078260,0.3802,3747.2,3747.1,0.001]
[1753148078585,2.66865926,3747.2,3747.1,0.001]
[1753148078785,2.69535226,3747.2,3747.1,0.001]
[1753148079960,7.07435226,3747.2,3747.1,0.001]
[1753148080168,4.379,3747.2,3747.1,0.001]
[1753148080365,4.405693,3747.2,3747.1,0.001]
[1753148080871,7.07435226,3747.2,3747.1,0.001]
[1753148081078,7.04765926,3747.2,3747.1,0.001]
[1753148081286,0.1328,3747.3,3747.1,0.001]
[1753148081493,4.379,3747.2,3747.1,0.001]
[1753148082200,0.026693,3747.3,3747.1,0.001]
[1753148082366,4.378,3747.2,3747.1,0.001]
[1753148082570,2.6952983,3747.3,3747.1,0.001]
[1753148082792,4.378,3747.2,3747.1,0.001]
[1753148083069,7.17945926,3747.2,3747.1,0.001]
[1753148083269,7.61095926,3747.2,3747.1,0.001]
[1753148083489,10.85835926,3747.2,3747.1,0.001]
[1753148083692,10.42585926,3747.2,3747.1,0.001]
[1753148084266,7.5098,3747.2,3747.1,0.001]
[1753148084573,10.17845926,3747.2,3747.1,0.001]
[1753148084774,7.5098,3747.2,3747.1,0.001]
[1753148085184,4.5098,3747.2,3747.1,0.001]
[1753148085386,0.026693,3747.5,3747.1,0.001]
[1753148085712,4.376,3747.4,3747.1,0.001]
[1753148086007,0.026693,3747.3,3747.1,0.001]
[1753148086710,4.376,3747.2,3747.1,0.4632]
[1753148086871,4.376,3747.2,3747.1,0.001]
[1753148087275,0.026693,3747.6,3747.1,0.4337]
[1753148087570,4.375,3747.5,3747.3,2.6685403]
[1753148087765,4.375,3747.5,3747.3,3.1012403]
[1753148088216,4.375,3747.5,3747.3,0.4327]
[1753148088418,0.026693,3747.4,3747.1,2.80252709]
[1753148088598,0.026693,3747.4,3747.1,0.1338]
[1753148089008,2.66860986,3747.3,3747.1,0.1338]
[1753148089339,0.026693,3747.2,3747.1,0.001]
[1753148090082,0.026693,3747.3,3747.1,0.001]
[1753148091223,2.66865926,3747.2,3747.1,0.001]
[1753148091438,7.76345926,3747.2,3747.1,0.001]
[1753148091804,7.29005926,3747.2,3747.1,0.001]
[1753148092935,7.76345926,3747.2,3747.1,0.001]
[1753148093251,10.76345926,3747.2,3747.1,0.001]
[1753148096408,11.31345926,3747.2,3747.1,0.001]
[1753148097012,11.31345926,3747.2,3746.6,0.001]
[1753148097013,3.4664154,3746.7,3746.6,0.001]
[1753148097272,10.8641084,3746.7,3746.6,0.001]
[1753148097416,11.3108154,3746.7,3746.6,0.001]
[1753148097727,10.7608154,3746.7,3746.6,0.001]
[1753148098250,6.3898154,3746.7,3746.6,0.001]
[1753148098467,10.3131084,3746.7,3746.6,0.001]
[1753148098612,10.2864154,3746.7,3746.6,0.001]
[1753148099014,7.37,3746.7,3746.6,0.001]
[1753148099227,0.2474,3747.0,3746.6,0.001]
[1753148099431,2.80174672,3746.8,3746.6,0.001]
[1753148099652,0.026693,3746.7,3746.6,0.001]
[1753148100232,0.1328,3746.8,3746.6,0.001]
[1753148100554,0.1328,3747.3,3746.6,0.5665]
[1753148100752,0.026693,3747.4,3746.6,0.5665]
[1753148100753,4.369,3747.2,3746.8,2.66894416]
[1753148100922,2.69507462,3747.6,3747.1,0.1328]
[1753148101116,4.369,3747.5,3747.2,0.4327]
[1753148101317,0.026693,3747.4,3747.3,3.10128805]
[1753148101518,6.5358,3747.7,3747.4,0.4327]
[1753148101717,6.5358,3747.7,3747.3,2.66857002]
[1753148101718,4.368,3747.6,3747.3,2.66857002]
[1753148101917,4.368,3747.6,3747.4,0.4327]
[1753148102259,0.026693,3747.5,3747.1,0.1328]
[1753148102562,2.66888041,3746.9,3746.6,0.001]
[1753148102732,7.06265023,3746.8,3746.6,0.001]
[1753148102934,7.0627084,3746.7,3746.6,0.001]
[1753148103116,7.7562154,3746.7,3746.6,0.001]
[1753148103323,8.3062154,3746.7,3746.6,0.001]
[1753148103547,10.7562154,3746.7,3746.6,0.001]
[1753148103763,10.2828154,3746.7,3746.6,0.001]
[1753148104345,11.3062154,3746.7,3746.6,0.001]
[1753148104858,6.46602912,3746.4,3746.3,1e-08]
[1753148105062,20.01999443,3746.4,3746.3,1e-08]
[1753148105248,6.46638541,3745.9,3745.8,0.001]
[1753148105432,6.46638541,3745.9,3745.6,0.001]
[1753148105433,15.24820026,3745.7,3745.6,0.001]
[1753148105645,19.61420026,3745.7,3745.6,0.001]
[1753148105864,19.61420026,3745.7,3745.6,1e-08]
[1753148106066,3.22008437,3745.2,3744.1,0.001]
[1753148106268,7.83288437,3745.2,3744.1,0.001]
[1753148106439,8.30628437,3745.2,3744.1,0.001]
[1753148106643,2.6707975,3744.2,3744.1,0.001]
[1753148106964,4.391693,3744.2,3744.1,0.001]
[1753148107162,7.0624905,3744.2,3744.1,0.001]
[1753148107470,7.0357975,3744.2,3744.1,0.001]
[1753148107672,0.7968,3745.2,3744.1,0.001]
[1753148107831,0.7968,3745.2,3744.1,0.4337]
[1753148107832,3.0,3745.0,3744.1,0.4337]
[1753148108162,0.1328,3744.5,3744.1,3.10451664]
[1753148108362,0.1328,3744.5,3744.1,0.001]
[1753148108363,4.365,3744.4,3744.1,0.001]
[1753148108567,0.026693,3744.3,3744.1,0.001]
[1753148108950,4.365,3744.2,3744.1,0.001]
[1753148109159,0.026693,3744.6,3744.1,0.001]
[1753148109364,4.365,3744.5,3744.1,0.001]
[1753148109523,0.026693,3744.4,3744.1,0.001]
[1753148109729,0.026693,3744.4,3744.2,0.4327]
[1753148110028,0.159493,3744.4,3744.3,3.10342617]
[1753148110257,0.1328,3744.8,3744.6,2.67050585]
[1753148110461,4.364,3744.7,3744.6,2.67050585]
[1753148110660,4.364,3744.7,3744.6,3.10320585]
[1753148110862,0.1328,3744.8,3744.7,2.67044088]
[1753148111063,4.364,3745.0,3744.9,2.67029827]
[1753148111227,0.1328,3745.5,3745.2,2.67002286]
[1753148111444,4.364,3745.4,3744.9,3.23579266]
[1753148111638,0.026693,3745.3,3745.1,2.67012777]
[1753148112079,4.364,3745.4,3745.3,2.67001308]
[1753148112375,0.1328,3745.5,3745.4,2.66994179]
[1753148112543,4.4968,3745.5,3745.4,3.10264179]
[1753148112746,4.4968,3745.5,3745.4,0.4327]
[1753148113276,4.4968,3745.5,3745.4,3.10264179]
[1753148113476,4.4968,3745.5,3745.4,0.4327]
[1753148113974,2.91618928,3746.2,3745.8,2.66960837]
[1753148113975,0.1328,3746.2,3745.8,2.66960837]
[1753148114175,0.026693,3746.1,3745.5,1.1776]
[1753148114386,0.159493,3746.2,3745.9,0.4327]
[1753148114677,4.362,3746.1,3746.0,2.66951414]
[1753148114881,4.362,3746.1,3746.0,3.10221414]
[1753148115680,4.362,3746.1,3745.5,1.6103]
[1753148115980,0.026693,3746.0,3745.7,2.66971676]
[1753148116139,0.026693,3746.0,3745.6,0.1328]
[1753148116348,2.6962187,3746.0,3745.6,0.1328]
[1753148116580,2.69622689,3746.0,3745.3,2.66999249]
[1753148116753,0.1328,3745.7,3745.4,2.66991006]
[1753148116943,0.026693,3746.0,3745.5,2.66985026]
[1753148117140,0.159493,3746.0,3745.9,2.66958541]
[1753148117341,0.1328,3746.4,3745.7,0.1328]
[1753148117592,4.361,3746.3,3746.0,2.66950791]
[1753148117885,4.361,3746.3,3746.1,0.4328]
[1753148118185,0.2468,3747.3,3746.2,0.4328]
[1753148118385,0.1328,3746.9,3746.2,3.23496509]
[1753148118681,0.026693,3746.8,3746.3,2.66924472]
[1753148118896,0.74582387,3746.8,3746.3,2.66924472]
[1753148119092,0.2468,3746.7,3745.4,0.4328]
[1753148119297,2.66945571,3746.1,3745.5,2.66981893]
[1753148119495,4.386693,3746.0,3745.5,2.66981893]
[1753148119651,4.386693,3746.0,3745.6,2.6697944]
[1753148119853,4.359,3746.0,3745.7,3.10252645]
[1753148120078,5.66899638,3746.8,3745.8,0.4328]
[1753148120278,4.385693,3746.7,3746.0,1.133]
[1753148120557,0.026693,3746.7,3745.8,0.4328]
[1753148120756,2.66934918,3746.3,3745.8,0.4328]
[1753148120988,4.385693,3746.2,3745.6,1.133]
[1753148121196,4.359,3746.1,3745.6,1.133]
[1753148121496,0.4366,3746.8,3745.6,1.133]
[1753148121497,0.002,3747.1,3745.7,0.4328]
[1753148121691,0.002,3747.1,3747.0,2.6688017]
[1753148121991,0.002,3747.1,3747.0,3.8018017]
[1753148122307,4.36,3747.9,3747.0,1.59248801]
[1753148122471,0.002,3747.9,3747.8,2.66823202]
[1753148122791,0.002,3747.9,3747.3,0.4328]
[1753148123380,0.002,3747.9,3747.1,0.0266873]
[1753148123381,2.66823202,3747.8,3747.1,2.66866521]
[1753148123689,0.002,3747.9,3747.3,2.66858805]
[1753148123690,4.359,3747.9,3747.3,2.66858805]
[1753148123877,4.359,3747.9,3747.4,0.4328]
[1753148124085,4.359,3747.9,3747.5,0.4328]
[1753148124284,4.359,3747.9,3747.6,0.4328]
[1753148124285,0.002,3747.9,3747.6,0.4328]
[1753148124680,2.66824401,3747.8,3747.6,0.4328]
[1753148124994,2.66839849,3747.6,3747.2,0.4328]
[1753148125302,2.66824,3747.8,3747.2,3.1281295]
[1753148125498,2.66824,3747.8,3747.3,0.4328]
[1753148125800,4.358,3747.9,3747.4,0.4328]
[1753148126003,2.66855421,3747.4,3747.0,1.133]
[1753148126199,0.002,3747.9,3747.2,2.6686504]
[1753148126370,2.67021199,3747.9,3747.3,0.4328]
[1753148126573,2.69499522,3747.8,3747.3,0.4328]
[1753148126765,0.026693,3747.8,3747.3,0.4328]
[1753148127098,0.026693,3747.8,3747.0,1.133]
[1753148127475,2.6701782,3747.9,3747.1,0.4594873]
[1753148127662,0.002,3747.9,3747.1,0.4594873]
[1753148128165,0.002,3747.9,3747.8,1.1178]
[1753148128806,0.002,3747.9,3747.4,1.5506]